[Event "Titled Tuesday Blitz May 2 Early 2023"]
[White "Kubatko, Ivan"]
[Black "Buchenau, Frank"]
[WhiteFideId "24111473"]
[BlackFideId "4604350"]
[WhiteElo "2285"]
[BlackElo "2157"]
[Result "0-1"]
[Round "07"]
[TimeControl "180+2"]
[Date "2023.05.03"]
[WhiteClock "0:00:00"]
[BlackClock "0:00:00"]

1. e4 {[%clk 0:00:01]}  e6 {[%clk 0:00:01]} 2. d4 {[%clk 0:00:01]}  d5 {[%clk 0:00:01]} 3. exd5 {[%clk 0:00:01]}  exd5 {[%clk 0:00:01]} 4. Nf3 {[%clk 0:00:01]}  Bf5 {[%clk 0:00:01]} 5. c4 {[%clk 0:00:01]}  Bxb1 {[%clk 0:00:01]} 6. Rxb1 {[%clk 0:00:01]}  Bb4+ {[%clk 0:00:01]} 7. Bd2 {[%clk 0:00:01]}  Bxd2+ {[%clk 0:00:01]} 8. Qxd2 {[%clk 0:00:01]}  Nf6 {[%clk 0:00:01]} 9. Bd3 {[%clk 0:00:01]}  dxc4 {[%clk 0:00:01]} 10. Bxc4 {[%clk 0:00:01]}  O-O {[%clk 0:00:01]} 11. O-O {[%clk 0:00:01]}  Nc6 {[%clk 0:00:01]} 12. Rbd1 {[%clk 0:00:01]}  Qd6 {[%clk 0:00:01]} 13. Qg5 {[%clk 0:00:01]}  h6 {[%clk 0:00:01]} 14. Qh4 {[%clk 0:00:01]}  Rfe8 {[%clk 0:00:01]} 15. Rfe1 {[%clk 0:00:01]}  Rxe1+ {[%clk 0:00:01]} 16. Rxe1 {[%clk 0:00:01]}  Rd8 {[%clk 0:00:01]} 17. Ne5 {[%clk 0:00:00]}  Qxd4 {[%clk 0:00:01]} 18. Qxd4 {[%clk 0:00:00]}  Rxd4 {[%clk 0:00:01]} 19. Bxf7+ {[%clk 0:00:00]}  Kf8 {[%clk 0:00:01]} 20. Nxc6 {[%clk 0:00:00]}  bxc6 {[%clk 0:00:01]} 21. Bg6 {[%clk 0:00:00]}  Rd2 {[%clk 0:00:01]} 22. g4 {[%clk 0:00:00]}  Rxb2 {[%clk 0:00:00]} 23. f4 {[%clk 0:00:00]}  Rb8 {[%clk 0:00:00]} 24. g5 {[%clk 0:00:00]}  Nd5 {[%clk 0:00:00]} 25. gxh6 {[%clk 0:00:00]}  gxh6 {[%clk 0:00:00]} 26. f5 {[%clk 0:00:00]}  Kg7 {[%clk 0:00:00]} 27. h4 {[%clk 0:00:00]}  Rb2 {[%clk 0:00:00]} 28. h5 {[%clk 0:00:00]}  Rxa2 {[%clk 0:00:00]} 29. Re6 {[%clk 0:00:00]}  a5 {[%clk 0:00:00]} 30. Rxc6 {[%clk 0:00:00]}  a4 {[%clk 0:00:00]} 31. Rc5 {[%clk 0:00:00]}  Rd2 {[%clk 0:00:00]} 32. Ra5 {[%clk 0:00:00]}  Rd4 {[%clk 0:00:00]} 33. Be8 {[%clk 0:00:00]}  Kf6 {[%clk 0:00:00]} 34. Rxa4 {[%clk 0:00:00]}  Rxa4 {[%clk 0:00:00]} 35. Bxa4 {[%clk 0:00:00]}  Kxf5 {[%clk 0:00:00]} 36. Kg2 {[%clk 0:00:00]}  Nf4+ {[%clk 0:00:00]} 37. Kg3 {[%clk 0:00:00]}  Nxh5+ {[%clk 0:00:00]} 38. Kh4 {[%clk 0:00:00]}  Nf6 {[%clk 0:00:00]} 39. Bc2+ {[%clk 0:00:00]}  Ke5 {[%clk 0:00:00]} 40. Bb3 {[%clk 0:00:00]}  c5 {[%clk 0:00:00]} 41. Bf7 {[%clk 0:00:00]}  Kd4 {[%clk 0:00:00]} 42. Kg3 {[%clk 0:00:00]}  Nd5 {[%clk 0:00:00]} 43. Kf3 {[%clk 0:00:00]}  c4 {[%clk 0:00:00]} 44. Bg6 {[%clk 0:00:00]}  c3 {[%clk 0:00:00]} 45. Kg4 {[%clk 0:00:00]}  Nf6+ {[%clk 0:00:00]} 46. Kf4 {[%clk 0:00:00]}  Kc4 {[%clk 0:00:00]} 47. Bf7+ {[%clk 0:00:00]}  Kd4 {[%clk 0:00:00]} 48. Bg6 {[%clk 0:00:00]}  Nd5+ {[%clk 0:00:00]} 49. Kg4 {[%clk 0:00:00]}  Nb4 {[%clk 0:00:00]} 50. Kh5 {[%clk 0:00:00]}  Nd3 {[%clk 0:00:00]} 0-1


[Site "https://www.chess.com"]

[Event "Titled Tuesday Blitz May 2 Early 2023"]
[White "Zaichenko, Daria"]
[Black "Chirivi C, Jenny Astrid"]
[WhiteFideId "4197453"]
[BlackFideId "4403061"]
[WhiteElo "2039"]
[BlackElo "2001"]
[Result "1-0"]
[Round "07"]
[TimeControl "180+2"]
[Date "2023.05.03"]
[WhiteClock "0:00:00"]
[BlackClock "0:00:00"]

1. e4 {[%clk 0:00:01]}  c5 {[%clk 0:00:01]} 2. Nf3 {[%clk 0:00:01]}  e6 {[%clk 0:00:01]} 3. d4 {[%clk 0:00:01]}  cxd4 {[%clk 0:00:01]} 4. Nxd4 {[%clk 0:00:01]}  a6 {[%clk 0:00:01]} 5. Nc3 {[%clk 0:00:01]}  Qc7 {[%clk 0:00:01]} 6. Be3 {[%clk 0:00:01]}  Nf6 {[%clk 0:00:01]} 7. Bd3 {[%clk 0:00:01]}  Nc6 {[%clk 0:00:01]} 8. O-O {[%clk 0:00:01]}  h5 {[%clk 0:00:01]} 9. a4 {[%clk 0:00:01]}  b6 {[%clk 0:00:01]} 10. Nb3 {[%clk 0:00:01]}  Na5 {[%clk 0:00:01]} 11. Nxa5 {[%clk 0:00:01]}  bxa5 {[%clk 0:00:01]} 12. f4 {[%clk 0:00:01]}  Rb8 {[%clk 0:00:01]} 13. Rb1 {[%clk 0:00:01]}  Bb4 {[%clk 0:00:01]} 14. Bd4 {[%clk 0:00:01]}  d6 {[%clk 0:00:01]} 15. Kh1 {[%clk 0:00:01]}  Bc5 {[%clk 0:00:01]} 16. Be2 {[%clk 0:00:01]}  Bb7 {[%clk 0:00:01]} 17. e5 {[%clk 0:00:01]}  Bxd4 {[%clk 0:00:01]} 18. Qxd4 {[%clk 0:00:01]}  dxe5 {[%clk 0:00:01]} 19. fxe5 {[%clk 0:00:01]}  Nd7 {[%clk 0:00:01]} 20. Qf4 {[%clk 0:00:01]}  Nxe5 {[%clk 0:00:01]} 21. Rbe1 {[%clk 0:00:01]}  f6 {[%clk 0:00:01]} 22. Bd3 {[%clk 0:00:00]}  Rc8 {[%clk 0:00:00]} 23. Bg6+ {[%clk 0:00:00]}  Nxg6 {[%clk 0:00:00]} 24. Rxe6+ {[%clk 0:00:00]}  Ne7 {[%clk 0:00:00]} 25. Qf5 {[%clk 0:00:00]}  O-O {[%clk 0:00:00]} 26. Qxh5 {[%clk 0:00:00]}  Qd7 {[%clk 0:00:00]} 27. Re3 {[%clk 0:00:00]}  Qc6 {[%clk 0:00:00]} 28. Rff3 {[%clk 0:00:00]}  Nd5 {[%clk 0:00:00]} 29. Rd3 {[%clk 0:00:00]}  Nxc3 {[%clk 0:00:00]} 30. Rxc3 {[%clk 0:00:00]}  Qd5 {[%clk 0:00:00]} 31. Qxd5+ {[%clk 0:00:00]}  Bxd5 {[%clk 0:00:00]} 32. Rfd3 {[%clk 0:00:00]}  Rxc3 {[%clk 0:00:00]} 33. Rxc3 {[%clk 0:00:00]}  Re8 {[%clk 0:00:00]} 34. h3 {[%clk 0:00:00]}  Re1+ {[%clk 0:00:00]} 35. Kh2 {[%clk 0:00:00]}  Re2 {[%clk 0:00:00]} 36. Kg3 {[%clk 0:00:00]}  Rxg2+ {[%clk 0:00:00]} 37. Kf4 {[%clk 0:00:00]}  Re2 {[%clk 0:00:00]} 38. Rc5 {[%clk 0:00:00]}  Be6 {[%clk 0:00:00]} 39. Rxa5 {[%clk 0:00:00]}  Rxc2 {[%clk 0:00:00]} 40. Rxa6 {[%clk 0:00:00]}  Bxh3 {[%clk 0:00:00]} 41. b4 {[%clk 0:00:00]}  Rc4+ {[%clk 0:00:00]} 42. Kg3 {[%clk 0:00:00]}  Bf1 {[%clk 0:00:00]} 43. b5 {[%clk 0:00:00]}  Rc3+ {[%clk 0:00:00]} 44. Kf2 {[%clk 0:00:00]}  Bc4 {[%clk 0:00:00]} 45. Ra8+ {[%clk 0:00:00]}  Kf7 {[%clk 0:00:00]} 46. b6 {[%clk 0:00:00]}  Rb3 {[%clk 0:00:00]} 47. a5 {[%clk 0:00:00]}  f5 {[%clk 0:00:00]} 48. Rc8 {[%clk 0:00:00]}  Bd5 {[%clk 0:00:00]} 49. Rc7+ {[%clk 0:00:00]}  Kf6 {[%clk 0:00:00]} 50. Rc8 {[%clk 0:00:00]}  Be4 {[%clk 0:00:00]} 51. Rb8 {[%clk 0:00:00]}  g5 {[%clk 0:00:00]} 52. a6 {[%clk 0:00:00]}  g4 {[%clk 0:00:00]} 53. a7 {[%clk 0:00:00]}  Rb2+ {[%clk 0:00:00]} 54. Ke3 {[%clk 0:00:00]}  Kg5 {[%clk 0:00:00]} 55. b7 {[%clk 0:00:00]}  Rb3+ {[%clk 0:00:00]} 56. Kd4 {[%clk 0:00:00]}  g3 {[%clk 0:00:00]} 57. a8=Q {[%clk 0:00:00]}  Rb4+ {[%clk 0:00:00]} 58. Kc5 {[%clk 0:00:00]}  Rb1 {[%clk 0:00:00]} 59. Rg8+ {[%clk 0:00:00]}  Kf4 {[%clk 0:00:00]} 60. Qb8+ {[%clk 0:00:00]}  Ke3 {[%clk 0:00:00]} 61. Qxg3+ {[%clk 0:00:00]}  Bf3 {[%clk 0:00:00]} 62. Re8+ {[%clk 0:00:00]}  Kd2 {[%clk 0:00:00]} 63. Qxf3 {[%clk 0:00:00]}  Rc1+ {[%clk 0:00:00]} 64. Kd4 {[%clk 0:00:00]}  Kc2 {[%clk 0:00:00]} 65. Qf2+ {[%clk 0:00:00]}  Kb3 {[%clk 0:00:00]} 66. Qe3+ {[%clk 0:00:00]}  Kb2 {[%clk 0:00:00]} 67. Qd2+ {[%clk 0:00:00]}  Rc2 {[%clk 0:00:00]} 68. Qb4+ {[%clk 0:00:00]}  Ka2 {[%clk 0:00:00]} 69. Ra8# {[%clk 0:00:00]} 1-0


[Site "https://www.chess.com"]

[Event "Titled Tuesday Blitz May 2 Early 2023"]
[White "Zaitsev, Alexander"]
[Black "Sanhueza, Cristian"]
[WhiteFideId "4164490"]
[BlackFideId "116815"]
[WhiteElo "2373"]
[BlackElo "2219"]
[Result "1-0"]
[Round "07"]
[TimeControl "180+2"]
[Date "2023.05.03"]
[WhiteClock "0:00:00"]
[BlackClock "0:00:00"]

1. e4 {[%clk 0:00:01]}  e5 {[%clk 0:00:01]} 2. Nc3 {[%clk 0:00:01]}  Nc6 {[%clk 0:00:01]} 3. Bc4 {[%clk 0:00:01]}  Nf6 {[%clk 0:00:01]} 4. d3 {[%clk 0:00:01]}  Na5 {[%clk 0:00:01]} 5. Nge2 {[%clk 0:00:01]}  Nxc4 {[%clk 0:00:01]} 6. dxc4 {[%clk 0:00:01]}  Bc5 {[%clk 0:00:01]} 7. O-O {[%clk 0:00:01]}  h6 {[%clk 0:00:01]} 8. Qd3 {[%clk 0:00:01]}  c6 {[%clk 0:00:01]} 9. Be3 {[%clk 0:00:01]}  Qe7 {[%clk 0:00:01]} 10. Rad1 {[%clk 0:00:01]}  d6 {[%clk 0:00:01]} 11. Bxc5 {[%clk 0:00:00]}  dxc5 {[%clk 0:00:01]} 12. Ng3 {[%clk 0:00:00]}  O-O {[%clk 0:00:01]} 13. Rd2 {[%clk 0:00:00]}  Be6 {[%clk 0:00:01]} 14. Rfd1 {[%clk 0:00:00]}  g6 {[%clk 0:00:01]} 15. b3 {[%clk 0:00:00]}  Rac8 {[%clk 0:00:01]} 16. h3 {[%clk 0:00:00]}  Rc7 {[%clk 0:00:01]} 17. Qe3 {[%clk 0:00:00]}  Kg7 {[%clk 0:00:01]} 18. Rd6 {[%clk 0:00:00]}  b6 {[%clk 0:00:00]} 19. Nce2 {[%clk 0:00:00]}  Rd7 {[%clk 0:00:00]} 20. Rxd7 {[%clk 0:00:00]}  Nxd7 {[%clk 0:00:00]} 21. f4 {[%clk 0:00:00]}  exf4 {[%clk 0:00:00]} 22. Nxf4 {[%clk 0:00:00]}  Ne5 {[%clk 0:00:00]} 23. Qc3 {[%clk 0:00:00]}  f6 {[%clk 0:00:00]} 24. Qd2 {[%clk 0:00:00]}  Bf7 {[%clk 0:00:00]} 25. Qd6 {[%clk 0:00:00]}  Re8 {[%clk 0:00:00]} 26. Nfh5+ {[%clk 0:00:00]}  gxh5 {[%clk 0:00:00]} 27. Nf5+ {[%clk 0:00:00]}  Kf8 {[%clk 0:00:00]} 28. Nxe7 {[%clk 0:00:00]}  Rxe7 {[%clk 0:00:00]} 29. Qxf6 {[%clk 0:00:00]}  Ng6 {[%clk 0:00:00]} 30. Rd8+ {[%clk 0:00:00]}  Re8 {[%clk 0:00:00]} 31. Rxe8+ {[%clk 0:00:00]}  Kxe8 {[%clk 0:00:00]} 32. e5 {[%clk 0:00:00]} 1-0


[Site "https://www.chess.com"]

[Event "Titled Tuesday Blitz May 2 Early 2023"]
[White "Hinds, Nathan"]
[Black "Koridze, Lile"]
[WhiteFideId "7400730"]
[BlackFideId "13612514"]
[WhiteElo "2001"]
[BlackElo "2047"]
[Result "0-1"]
[Round "07"]
[TimeControl "180+2"]
[Date "2023.05.03"]
[WhiteClock "0:00:00"]
[BlackClock "0:00:00"]

1. Nf3 {[%clk 0:00:01]}  Nf6 {[%clk 0:00:01]} 2. c4 {[%clk 0:00:01]}  e6 {[%clk 0:00:01]} 3. g3 {[%clk 0:00:01]}  d5 {[%clk 0:00:01]} 4. Bg2 {[%clk 0:00:01]}  d4 {[%clk 0:00:01]} 5. O-O {[%clk 0:00:01]}  c5 {[%clk 0:00:01]} 6. b4 {[%clk 0:00:01]}  cxb4 {[%clk 0:00:01]} 7. Bb2 {[%clk 0:00:01]}  Nc6 {[%clk 0:00:01]} 8. a3 {[%clk 0:00:01]}  bxa3 {[%clk 0:00:01]} 9. Bxa3 {[%clk 0:00:01]}  Bxa3 {[%clk 0:00:01]} 10. Nxa3 {[%clk 0:00:01]}  O-O {[%clk 0:00:01]} 11. d3 {[%clk 0:00:01]}  e5 {[%clk 0:00:01]} 12. Qb3 {[%clk 0:00:01]}  Qe7 {[%clk 0:00:01]} 13. Rfb1 {[%clk 0:00:01]}  Nd7 {[%clk 0:00:01]} 14. Qb2 {[%clk 0:00:01]}  Nc5 {[%clk 0:00:01]} 15. Nd2 {[%clk 0:00:01]}  Na4 {[%clk 0:00:01]} 16. Qc2 {[%clk 0:00:01]}  Nc3 {[%clk 0:00:01]} 17. Re1 {[%clk 0:00:01]}  Bg4 {[%clk 0:00:01]} 18. Bf3 {[%clk 0:00:01]}  Bxf3 {[%clk 0:00:01]} 19. Nxf3 {[%clk 0:00:01]}  a6 {[%clk 0:00:01]} 20. Nb1 {[%clk 0:00:01]}  Nb4 {[%clk 0:00:00]} 21. Qb3 {[%clk 0:00:01]}  Nxb1 {[%clk 0:00:00]} 22. Rexb1 {[%clk 0:00:00]}  a5 {[%clk 0:00:00]} 23. Ne1 {[%clk 0:00:00]}  e4 {[%clk 0:00:00]} 24. Nc2 {[%clk 0:00:00]}  Nxc2 {[%clk 0:00:00]} 25. Qxc2 {[%clk 0:00:00]}  exd3 {[%clk 0:00:00]} 26. exd3 {[%clk 0:00:00]}  Rfd8 {[%clk 0:00:00]} 27. Rb5 {[%clk 0:00:00]}  Qc7 {[%clk 0:00:00]} 28. Qa4 {[%clk 0:00:00]}  b6 {[%clk 0:00:00]} 29. Rab1 {[%clk 0:00:00]}  Rd6 {[%clk 0:00:00]} 30. Qa3 {[%clk 0:00:00]}  h6 {[%clk 0:00:00]} 31. c5 {[%clk 0:00:00]}  bxc5 {[%clk 0:00:00]} 32. Rxc5 {[%clk 0:00:00]}  Qd8 {[%clk 0:00:00]} 33. Rbb5 {[%clk 0:00:00]}  a4 {[%clk 0:00:00]} 34. Rb4 {[%clk 0:00:00]}  Qd7 {[%clk 0:00:00]} 35. Rcc4 {[%clk 0:00:00]}  Re8 {[%clk 0:00:00]} 36. Rc1 {[%clk 0:00:00]}  Re2 {[%clk 0:00:00]} 37. Qxa4 {[%clk 0:00:00]}  Qe6 {[%clk 0:00:00]} 38. Qa8+ {[%clk 0:00:00]}  Kh7 {[%clk 0:00:00]} 39. Qf3 {[%clk 0:00:00]}  Re1+ {[%clk 0:00:00]} 40. Rxe1 {[%clk 0:00:00]}  Qxe1+ {[%clk 0:00:00]} 41. Kg2 {[%clk 0:00:00]}  Qxb4 {[%clk 0:00:00]} 42. Qf5+ {[%clk 0:00:00]}  Rg6 {[%clk 0:00:00]} 43. h4 {[%clk 0:00:00]}  Qb7+ {[%clk 0:00:00]} 44. Kh2 {[%clk 0:00:00]}  Kg8 {[%clk 0:00:00]} 45. Qe5 {[%clk 0:00:00]}  Rf6 {[%clk 0:00:00]} 46. f4 {[%clk 0:00:00]}  Qd7 {[%clk 0:00:00]} 47. Qb8+ {[%clk 0:00:00]}  Kh7 {[%clk 0:00:00]} 48. Qe5 {[%clk 0:00:00]}  Re6 {[%clk 0:00:00]} 49. Qf5+ {[%clk 0:00:00]}  g6 {[%clk 0:00:00]} 50. Qc5 {[%clk 0:00:00]}  Re2+ {[%clk 0:00:00]} 51. Kg1 {[%clk 0:00:00]}  Qg4 {[%clk 0:00:00]} 52. Qf5 {[%clk 0:00:00]}  Qxg3+ {[%clk 0:00:00]} 0-1


[Site "https://www.chess.com"]

[Event "Titled Tuesday Blitz May 2 Early 2023"]
[White "Wessendorf, Thomas, Dr."]
[Black "Marcziter, Dmitrii"]
[WhiteFideId "4604270"]
[BlackFideId "13900765"]
[WhiteElo "2280"]
[BlackElo "2162"]
[Result "0-1"]
[Round "07"]
[TimeControl "180+2"]
[Date "2023.05.03"]
[WhiteClock "0:00:01"]
[BlackClock "0:00:01"]

1. e4 {[%clk 0:00:01]}  c5 {[%clk 0:00:01]} 2. Nf3 {[%clk 0:00:01]}  a6 {[%clk 0:00:01]} 3. c3 {[%clk 0:00:01]}  d5 {[%clk 0:00:01]} 4. exd5 {[%clk 0:00:01]}  Qxd5 {[%clk 0:00:01]} 5. d4 {[%clk 0:00:01]}  Nf6 {[%clk 0:00:01]} 6. Bd3 {[%clk 0:00:01]}  Bg4 {[%clk 0:00:01]} 7. Nbd2 {[%clk 0:00:01]}  cxd4 {[%clk 0:00:01]} 8. cxd4 {[%clk 0:00:01]}  e6 {[%clk 0:00:01]} 9. O-O {[%clk 0:00:01]}  Nc6 {[%clk 0:00:01]} 10. Qa4 {[%clk 0:00:01]}  b5 {[%clk 0:00:01]} 11. Qb3 {[%clk 0:00:01]}  Be7 {[%clk 0:00:01]} 12. Re1 {[%clk 0:00:01]}  O-O {[%clk 0:00:01]} 13. Ne4 {[%clk 0:00:01]}  Qxb3 {[%clk 0:00:01]} 14. axb3 {[%clk 0:00:01]}  Bxf3 {[%clk 0:00:01]} 15. gxf3 {[%clk 0:00:01]}  Nxd4 {[%clk 0:00:01]} 0-1


[Site "https://www.chess.com"]

[Event "Titled Tuesday Blitz May 2 Early 2023"]
[White "Jiganchine, Roman"]
[Black "Shubenkova, Veronika"]
[WhiteFideId "2603667"]
[BlackFideId "44124040"]
[WhiteElo "2205"]
[BlackElo "2027"]
[Result "1/2-1/2"]
[Round "07"]
[TimeControl "180+2"]
[Date "2023.05.03"]
[WhiteClock "0:00:00"]
[BlackClock "0:00:00"]

1. e4 {[%clk 0:00:01]}  e6 {[%clk 0:00:01]} 2. d4 {[%clk 0:00:01]}  d5 {[%clk 0:00:01]} 3. Nd2 {[%clk 0:00:01]}  Nf6 {[%clk 0:00:01]} 4. Bd3 {[%clk 0:00:01]}  Be7 {[%clk 0:00:01]} 5. Ngf3 {[%clk 0:00:01]}  c5 {[%clk 0:00:01]} 6. c3 {[%clk 0:00:01]}  Nc6 {[%clk 0:00:01]} 7. O-O {[%clk 0:00:01]}  Qb6 {[%clk 0:00:01]} 8. exd5 {[%clk 0:00:01]}  Nxd5 {[%clk 0:00:01]} 9. dxc5 {[%clk 0:00:01]}  Bxc5 {[%clk 0:00:01]} 10. Nb3 {[%clk 0:00:01]}  Be7 {[%clk 0:00:01]} 11. Qe2 {[%clk 0:00:01]}  O-O {[%clk 0:00:01]} 12. Qe4 {[%clk 0:00:01]}  Nf6 {[%clk 0:00:01]} 13. Qh4 {[%clk 0:00:01]}  Rd8 {[%clk 0:00:01]} 14. Bc2 {[%clk 0:00:01]}  e5 {[%clk 0:00:01]} 15. Bg5 {[%clk 0:00:01]}  h6 {[%clk 0:00:01]} 16. Bxh6 {[%clk 0:00:01]}  gxh6 {[%clk 0:00:01]} 17. Qxh6 {[%clk 0:00:01]}  e4 {[%clk 0:00:01]} 18. Ng5 {[%clk 0:00:00]}  Bf5 {[%clk 0:00:01]} 19. Rae1 {[%clk 0:00:00]}  Ne5 {[%clk 0:00:01]} 20. Nd4 {[%clk 0:00:00]}  Bg6 {[%clk 0:00:01]} 21. Nxe4 {[%clk 0:00:00]}  Nxe4 {[%clk 0:00:00]} 22. Bxe4 {[%clk 0:00:00]}  Bxe4 {[%clk 0:00:00]} 23. Qxb6 {[%clk 0:00:00]}  axb6 {[%clk 0:00:00]} 24. Rxe4 {[%clk 0:00:00]}  Bf6 {[%clk 0:00:00]} 25. a3 {[%clk 0:00:00]}  Nd3 {[%clk 0:00:00]} 26. b4 {[%clk 0:00:00]}  Re8 {[%clk 0:00:00]} 27. Rg4+ {[%clk 0:00:00]}  Kf8 {[%clk 0:00:00]} 28. Rd1 {[%clk 0:00:00]}  Nb2 {[%clk 0:00:00]} 29. Rf1 {[%clk 0:00:00]}  Rxa3 {[%clk 0:00:00]} 30. h4 {[%clk 0:00:00]}  Bxd4 {[%clk 0:00:00]} 31. Rxd4 {[%clk 0:00:00]}  Rxc3 {[%clk 0:00:00]} 32. Rd7 {[%clk 0:00:00]}  Rc4 {[%clk 0:00:00]} 33. Rxb7 {[%clk 0:00:00]}  Rxb4 {[%clk 0:00:00]} 34. h5 {[%clk 0:00:00]}  Nd3 {[%clk 0:00:00]} 35. Rd1 {[%clk 0:00:00]}  Nf4 {[%clk 0:00:00]} 36. h6 {[%clk 0:00:00]}  Ne2+ {[%clk 0:00:00]} 37. Kf1 {[%clk 0:00:00]}  Nc3 {[%clk 0:00:00]} 38. Rc1 {[%clk 0:00:00]}  Nd5 {[%clk 0:00:00]} 39. g3 {[%clk 0:00:00]}  Rb2 {[%clk 0:00:00]} 40. Rd1 {[%clk 0:00:00]}  Nf6 {[%clk 0:00:00]} 41. Rd6 {[%clk 0:00:00]}  Rxf2+ {[%clk 0:00:00]} 42. Kxf2 {[%clk 0:00:00]}  Ne4+ {[%clk 0:00:00]} 43. Kf3 {[%clk 0:00:00]}  Nxd6 {[%clk 0:00:00]} 44. Rxb6 {[%clk 0:00:00]}  Nc4 {[%clk 0:00:00]} 45. Ra6 {[%clk 0:00:00]}  Ne5+ {[%clk 0:00:00]} 46. Kf4 {[%clk 0:00:00]}  Kg8 {[%clk 0:00:00]} 47. Ra5 {[%clk 0:00:00]}  Ng6+ {[%clk 0:00:00]} 48. Kg5 {[%clk 0:00:00]}  Re5+ {[%clk 0:00:00]} 49. Rxe5 {[%clk 0:00:00]}  Nxe5 {[%clk 0:00:00]} 50. Kf6 {[%clk 0:00:00]}  Nd7+ {[%clk 0:00:00]} 51. Ke7 {[%clk 0:00:00]}  Nf8 {[%clk 0:00:00]} 52. Kf6 {[%clk 0:00:00]}  Nh7+ {[%clk 0:00:00]} 53. Kf5 {[%clk 0:00:00]}  Kf8 {[%clk 0:00:00]} 54. g4 {[%clk 0:00:00]}  Kg8 {[%clk 0:00:00]} 55. g5 {[%clk 0:00:00]}  Nf8 {[%clk 0:00:00]} 56. Kf6 {[%clk 0:00:00]}  Ng6 {[%clk 0:00:00]} 57. Kf5 {[%clk 0:00:00]}  Kf8 {[%clk 0:00:00]} 58. Kf6 {[%clk 0:00:00]}  Ke8 {[%clk 0:00:00]} 59. Kg7 {[%clk 0:00:00]}  Ke7 {[%clk 0:00:00]} 60. h7 {[%clk 0:00:00]}  Ke6 {[%clk 0:00:00]} 61. h8=Q {[%clk 0:00:00]}  Nxh8 {[%clk 0:00:00]} 62. Kxh8 {[%clk 0:00:00]}  Kf5 {[%clk 0:00:00]} 63. Kg7 {[%clk 0:00:00]}  Kxg5 {[%clk 0:00:00]} 64. Kxf7 {[%clk 0:00:00]} 1/2-1/2


[Site "https://www.chess.com"]

[Event "Titled Tuesday Blitz May 2 Early 2023"]
[White "Bashkansky, Ethan"]
[Black "Levitan, Caleb Levi"]
[WhiteFideId "2071533"]
[BlackFideId "14332620"]
[WhiteElo "2101"]
[BlackElo "1963"]
[Result "1-0"]
[Round "07"]
[TimeControl "180+2"]
[Date "2023.05.03"]
[WhiteClock "0:00:00"]
[BlackClock "0:00:00"]

1. d4 {[%clk 0:00:01]}  d5 {[%clk 0:00:01]} 2. c4 {[%clk 0:00:01]}  e6 {[%clk 0:00:01]} 3. Nc3 {[%clk 0:00:01]}  a6 {[%clk 0:00:01]} 4. cxd5 {[%clk 0:00:01]}  exd5 {[%clk 0:00:01]} 5. Bf4 {[%clk 0:00:01]}  Nf6 {[%clk 0:00:01]} 6. e3 {[%clk 0:00:01]}  c5 {[%clk 0:00:01]} 7. Bd3 {[%clk 0:00:01]}  Nc6 {[%clk 0:00:01]} 8. Nge2 {[%clk 0:00:01]}  Be7 {[%clk 0:00:01]} 9. O-O {[%clk 0:00:01]}  O-O {[%clk 0:00:01]} 10. b3 {[%clk 0:00:01]}  b5 {[%clk 0:00:01]} 11. dxc5 {[%clk 0:00:01]}  Bxc5 {[%clk 0:00:01]} 12. Rc1 {[%clk 0:00:01]}  Ba3 {[%clk 0:00:01]} 13. Rb1 {[%clk 0:00:01]}  Be6 {[%clk 0:00:01]} 14. Bg5 {[%clk 0:00:01]}  h6 {[%clk 0:00:01]} 15. Bh4 {[%clk 0:00:01]}  Bd6 {[%clk 0:00:01]} 16. Kh1 {[%clk 0:00:00]}  Ne5 {[%clk 0:00:01]} 17. Nd4 {[%clk 0:00:00]}  Nxd3 {[%clk 0:00:00]} 18. Qxd3 {[%clk 0:00:00]}  Be5 {[%clk 0:00:00]} 19. f4 {[%clk 0:00:00]}  Bxd4 {[%clk 0:00:00]} 20. Qxd4 {[%clk 0:00:00]}  b4 {[%clk 0:00:00]} 21. Qxb4 {[%clk 0:00:00]}  Bf5 {[%clk 0:00:00]} 22. Rbc1 {[%clk 0:00:00]}  Qd7 {[%clk 0:00:00]} 23. Bxf6 {[%clk 0:00:00]}  gxf6 {[%clk 0:00:00]} 24. Qd4 {[%clk 0:00:00]}  Kg7 {[%clk 0:00:00]} 25. Nxd5 {[%clk 0:00:00]}  Qe6 {[%clk 0:00:00]} 26. Nc7 {[%clk 0:00:00]}  Qc8 {[%clk 0:00:00]} 27. Nxa8 {[%clk 0:00:00]}  Qxa8 {[%clk 0:00:00]} 28. Rfd1 {[%clk 0:00:00]} 1-0


[Site "https://www.chess.com"]